Workbook

Sheet Sheet1
A1: 福泉市2022年统一面向社会公开招聘事业单位工作人员总成绩及拟进入体检人员名单
A2: 序号 | B2: 姓名 | C2: 面试 准考证号 | D2: 报考单位 | E2: 报考职位 | F2: 职位代码 | G2: 笔试 成绩 | H2: 面试 成绩 | I2: 总成绩 | J2: 排名 | K2: 是否拟进入体检 | L2: 备注
A3: 1 | B3: 刘林 | C3: 2023030102 | D3: 福泉市初级中学 | E3: 中学语文教师 | F3: 22702300101 | G3: 125.90 | H3: 90.80 | I3: =G3/1.5*0.5+H3*0.5 -> 87.37 | J3: 1 | K3: 是
A4: 2 | B4: 付欣开 | C4: 2023030107 | D4: 福泉市初级中学 | E4: 中学语文教师 | F4: 22702300101 | G4: 124.41 | H4: 86.68 | I4: 84.81 | J4: 2 | K4: 是
A5: 3 | B5: 陈韵 | C5: 2023030103 | D5: 福泉市初级中学 | E5: 中学语文教师 | F5: 22702300101 | G5: 125.43 | H5: 85.24 | I5: 84.43 | J5: 3 | K5: 是
A6: 4 | B6: 李彬 | C6: 2023030109 | D6: 福泉市初级中学 | E6: 中学语文教师 | F6: 22702300101 | G6: 123.86 | H6: 85.96 | I6: 84.27 | J6: 4 | K6: 是
A7: 5 | B7: 罗成念 | C7: 2023030110 | D7: 福泉市初级中学 | E7: 中学语文教师 | F7: 22702300101 | G7: 123.23 | H7: 86.08 | I7: 84.12 | J7: 5 | K7: 是
A8: 6 | B8: 谢静玲 | C8: 2023030104 | D8: 福泉市初级中学 | E8: 中学语文教师 | F8: 22702300101 | G8: 125.10 | H8: 84.36 | I8: 83.88 | J8: 6 | K8: 是
A9: 7 | B9: 陈亚亚 | C9: 2023030105 | D9: 福泉市初级中学 | E9: 中学语文教师 | F9: 22702300101 | G9: 125.06 | H9: 81.50 | I9: 82.44 | J9: 7
A10: 8 | B10: 宋小琴 | C10: 2023030108 | D10: 福泉市初级中学 | E10: 中学语文教师 | F10: 22702300101 | G10: 123.86 | H10: 80.60 | I10: 81.59 | J10: 8
A11: 9 | B11: 陈玲玉 | C11: 2023030115 | D11: 福泉市初级中学 | E11: 中学语文教师 | F11: 22702300101 | G11: 122.26 | H11: 81.48 | I11: 81.49 | J11: 9
A12: 10 | B12: 顾静梅 | C12: 2023030101 | D12: 福泉市初级中学 | E12: 中学语文教师 | F12: 22702300101 | G12: 127.00 | H12: 77.72 | I12: 81.19 | J12: 10
A13: 11 | B13: 马关雄 | C13: 2023030114 | D13: 福泉市初级中学 | E13: 中学语文教师 | F13: 22702300101 | G13: 122.31 | H13: 68.50 | I13: 75.02 | J13: 11
A14: 12 | B14: 陈梅 | C14: 2023030106 | D14: 福泉市初级中学 | E14: 中学语文教师 | F14: 22702300101 | G14: 124.72 | H14: 缺考 | I14: —
A15: 13 | B15: 王凤 | C15: 2023030111 | D15: 福泉市初级中学 | E15: 中学语文教师 | F15: 22702300101 | G15: 123.03 | H15: 缺考 | I15: —
A16: 14 | B16: 陈佼 | C16: 2023030112 | D16: 福泉市初级中学 | E16: 中学语文教师 | F16: 22702300101 | G16: 122.82 | H16: 缺考 | I16: —
A17: 15 | B17: 张曦 | C17: 2023030113 | D17: 福泉市初级中学 | E17: 中学语文教师 | F17: 22702300101 | G17: 122.73 | H17: 缺考 | I17: —
A18: 16 | B18: 孙荣春 | C18: 2023030116 | D18: 福泉市初级中学 | E18: 中学语文教师 | F18: 22702300101 | G18: 121.04 | H18: 缺考 | I18: —
A19: 17 | B19: 申婷 | C19: 2023030117 | D19: 福泉市第三中学 | E19: 中学政治教师 | F19: 22702300201 | G19: 131.56 | H19: 85.40 | I19: =G19/1.5*0.5+H19*0.5 -> 86.55 | J19: 1 | K19: 是
A20: 18 | B20: 卢文丽 | C20: 2023030118 | D20: 福泉市第三中学 | E20: 中学政治教师 | F20: 22702300201 | G20: 130.82 | H20: 85.88 | I20: 86.55 | J20: 1
A21: 19 | B21: 雷雨琴 | C21: 2023030119 | D21: 福泉市第三中学 | E21: 中学政治教师 | F21: 22702300201 | G21: 129.59 | H21: 81.08 | I21: 83.74 | J21: 3
A22: 20 | B22: 王娜 | C22: 2023030120 | D22: 福泉市第三中学 | E22: 中学地理教师 | F22: 22702300202 | G22: 126.62 | H22: 83.16 | I22: 83.79 | J22: 1 | K22: 是
A23: 21 | B23: 吴水秀 | C23: 2023030121 | D23: 福泉市第三中学 | E23: 中学地理教师 | F23: 22702300202 | G23: 125.17 | H23: 83.00 | I23: 83.22 | J23: 2
A24: 22 | B24: 尚威 | C24: 2023030122 | D24: 福泉市第三中学 | E24: 中学地理教师 | F24: 22702300202 | G24: 125.14 | H24: 80.14 | I24: 81.78 | J24: 3
A25: 23 | B25: 李丹 | C25: 2023030201 | D25: 福泉市初级中学 | E25: 中学数学教师 | F25: 22702300102 | G25: 122.67 | H25: 85.06 | I25: 83.42 | J25: 1 | K25: 是
A26: 24 | B26: 罗良 | C26: 2023030202 | D26: 福泉市初级中学 | E26: 中学数学教师 | F26: 22702300102 | G26: 122.54 | H26: 84.92 | I26: 83.31 | J26: 2 | K26: 是
A27: 25 | B27: 熊思 | C27: 2023030203 | D27: 福泉市初级中学 | E27: 中学数学教师 | F27: 22702300102 | G27: 120.27 | H27: 84.10 | I27: 82.14 | J27: 3 | K27: 是
A28: 26 | B28: 徐田虎 | C28: 2023030207 | D28: 福泉市初级中学 | E28: 中学数学教师 | F28: 22702300102 | G28: 118.09 | H28: 82.98 | I28: 80.85 | J28: 4 | K28: 是
A29: 27 | B29: 王梦 | C29: 2023030206 | D29: 福泉市初级中学 | E29: 中学数学教师 | F29: 22702300102 | G29: 118.51 | H29: 82.38 | I29: 80.69 | J29: 5
A30: 28 | B30: 官晓旭 | C30: 2023030209 | D30: 福泉市初级中学 | E30: 中学数学教师 | F30: 22702300102 | G30: 116.70 | H30: 80.92 | I30: 79.36 | J30: 6
A31: 29 | B31: 樊启竹 | C31: 2023030211 | D31: 福泉市初级中学 | E31: 中学数学教师 | F31: 22702300102 | G31: 115.16 | H31: 81.22 | I31: 79.00 | J31: 7
A32: 30 | B32: 王正非 | C32: 2023030205 | D32: 福泉市初级中学 | E32: 中学数学教师 | F32: 22702300102 | G32: 118.54 | H32: 78.10 | I32: 78.56 | J32: 8
A33: 31 | B33: 陈跃 | C33: 2023030208 | D33: 福泉市初级中学 | E33: 中学数学教师 | F33: 22702300102 | G33: 118.05 | H33: 77.90 | I33: 78.30 | J33: 9
A34: 32 | B34: 冯建金 | C34: 2023030212 | D34: 福泉市初级中学 | E34: 中学数学教师 | F34: 22702300102 | G34: 114.16 | H34: 80.24 | I34: 78.17 | J34: 10
A35: 33 | B35: 陈佐灿 | C35: 2023030210 | D35: 福泉市初级中学 | E35: 中学数学教师 | F35: 22702300102 | G35: 116.19 | H35: 77.62 | I35: 77.54 | J35: 11
A36: 34 | B36: 刘江龙 | C36: 2023030204 | D36: 福泉市初级中学 | E36: 中学数学教师 | F36: 22702300102 | G36: 118.71 | H36: 缺考 | I36: —
A37: 35 | B37: 胡蝶 | C37: 2023030213 | D37: 福泉市初级中学 | E37: 中学英语教师 | F37: 22702300103 | G37: 128.22 | H37: 85.68 | I37: =G37/1.5*0.5+H37*0.5 -> 85.58 | J37: 1 | K37: 是
A38: 36 | B38: 张甜甜 | C38: 2023030219 | D38: 福泉市初级中学 | E38: 中学英语教师 | F38: 22702300103 | G38: 122.79 | H38: 86.78 | I38: 84.32 | J38: 2 | K38: 是
A39: 37 | B39: 禄雪 | C39: 2023030218 | D39: 福泉市初级中学 | E39: 中学英语教师 | F39: 22702300103 | G39: 123.32 | H39: 85.70 | I39: 83.96 | J39: 3 | K39: 是
A40: 38 | B40: 付栏婷 | C40: 2023030221 | D40: 福泉市初级中学 | E40: 中学英语教师 | F40: 22702300103 | G40: 121.79 | H40: 85.64 | I40: 83.42 | J40: 4
A41: 39 | B41: 罗沐汐 | C41: 2023030217 | D41: 福泉市初级中学 | E41: 中学英语教师 | F41: 22702300103 | G41: 124.00 | H41: 84.04 | I41: 83.35 | J41: 5
A42: 40 | B42: 王飘 | C42: 2023030214 | D42: 福泉市初级中学 | E42: 中学英语教师 | F42: 22702300103 | G42: 126.53 | H42: 81.06 | I42: 82.71 | J42: 6
A43: 41 | B43: 邹琴琴 | C43: 2023030220 | D43: 福泉市初级中学 | E43: 中学英语教师 | F43: 22702300103 | G43: 122.12 | H43: 83.86 | I43: 82.64 | J43: 7
A44: 42 | B44: 吴昌英 | C44: 2023030216 | D44: 福泉市初级中学 | E44: 中学英语教师 | F44: 22702300103 | G44: 124.40 | H44: 81.92 | I44: 82.43 | J44: 8
A45: 43 | B45: 张文静 | C45: 2023030215 | D45: 福泉市初级中学 | E45: 中学英语教师 | F45: 22702300103 | G45: 126.48 | H45: 缺考 | I45: —
A46: 44 | B46: 杨静 | C46: 2023030222 | D46: 福泉市初级中学 | E46: 中学历史教师 | F46: 22702300104 | G46: 122.31 | H46: 86.66 | I46: =G46/1.5*0.5+H46*0.5 -> 84.10 | J46: 1 | K46: 是
A47: 45 | B47: 李飞飞 | C47: 2023030223 | D47: 福泉市初级中学 | E47: 中学历史教师 | F47: 22702300104 | G47: 122.08 | H47: 84.70 | I47: 83.04 | J47: 2 | K47: 是
A48: 46 | B48: 舒云 | C48: 2023030226 | D48: 福泉市初级中学 | E48: 中学历史教师 | F48: 22702300104 | G48: 118.79 | H48: 84.82 | I48: 82.01 | J48: 3
A49: 47 | B49: 周旺 | C49: 2023030225 | D49: 福泉市初级中学 | E49: 中学历史教师 | F49: 22702300104 | G49: 119.48 | H49: 83.26 | I49: 81.46 | J49: 4
A50: 48 | B50: 郭艳 | C50: 2023030224 | D50: 福泉市初级中学 | E50: 中学历史教师 | F50: 22702300104 | G50: 120.52 | H50: 81.94 | I50: 81.14 | J50: 5
A51: 49 | B51: 朱航越 | C51: 2023030305 | D51: 福泉市小学学校 | E51: 小学语文教师 | F51: 22702300301 | G51: 124.33 | H51: 90.51 | I51: 86.70 | J51: 1 | K51: 是
A52: 50 | B52: 安捷 | C52: 2023030302 | D52: 福泉市小学学校 | E52: 小学语文教师 | F52: 22702300301 | G52: 125.62 | H52: 89.62 | I52: 86.68 | J52: 2 | K52: 是
A53: 51 | B53: 袁瑾瑜 | C53: 2023030316 | D53: 福泉市小学学校 | E53: 小学语文教师 | F53: 22702300301 | G53: 121.51 | H53: 92.13 | I53: 86.57 | J53: 3 | K53: 是
A54: 52 | B54: 黄仕英 | C54: 2023030304 | D54: 福泉市小学学校 | E54: 小学语文教师 | F54: 22702300301 | G54: 124.84 | H54: 88.92 | I54: 86.07 | J54: 4 | K54: 是
A55: 53 | B55: 孔维香 | C55: 2023030309 | D55: 福泉市小学学校 | E55: 小学语文教师 | F55: 22702300301 | G55: 123.10 | H55: 89.48 | I55: 85.77 | J55: 5 | K55: 是
A56: 54 | B56: 罗晓庆 | C56: 2023030312 | D56: 福泉市小学学校 | E56: 小学语文教师 | F56: 22702300301 | G56: 122.45 | H56: 89.86 | I56: 85.75 | J56: 6 | K56: 是
A57: 55 | B57: 王珊 | C57: 2023030314 | D57: 福泉市小学学校 | E57: 小学语文教师 | F57: 22702300301 | G57: 121.74 | H57: 89.63 | I57: 85.40 | J57: 7 | K57: 是
A58: 56 | B58: 蒲婵娟 | C58: 2023030310 | D58: 福泉市小学学校 | E58: 小学语文教师 | F58: 22702300301 | G58: 123.03 | H58: 88.32 | I58: 85.17 | J58: 8 | K58: 是
A59: 57 | B59: 熊英 | C59: 2023030321 | D59: 福泉市小学学校 | E59: 小学语文教师 | F59: 22702300301 | G59: 120.14 | H59: 89.72 | I59: 84.91 | J59: 9
A60: 58 | B60: 胡亚丽 | C60: 2023030313 | D60: 福泉市小学学校 | E60: 小学语文教师 | F60: 22702300301 | G60: 122.05 | H60: 88.24 | I60: 84.80 | J60: 10
A61: 59 | B61: 陈保丽 | C61: 2023030318 | D61: 福泉市小学学校 | E61: 小学语文教师 | F61: 22702300301 | G61: 121.06 | H61: 88.88 | I61: 84.79 | J61: 11
A62: 60 | B62: 杨小丽 | C62: 2023030301 | D62: 福泉市小学学校 | E62: 小学语文教师 | F62: 22702300301 | G62: 126.14 | H62: 85.44 | I62: 84.77 | J62: 12
A63: 61 | B63: 孟娟 | C63: 2023030303 | D63: 福泉市小学学校 | E63: 小学语文教师 | F63: 22702300301 | G63: 125.55 | H63: 85.64 | I63: 84.67 | J63: 13
A64: 62 | B64: 刘昱成 | C64: 2023030306 | D64: 福泉市小学学校 | E64: 小学语文教师 | F64: 22702300301 | G64: 123.89 | H64: 86.54 | I64: 84.57 | J64: 14
A65: 63 | B65: 袁威 | C65: 2023030320 | D65: 福泉市小学学校 | E65: 小学语文教师 | F65: 22702300301 | G65: 120.19 | H65: 88.86 | I65: 84.49 | J65: 15
A66: 64 | B66: 王永 | C66: 2023030308 | D66: 福泉市小学学校 | E66: 小学语文教师 | F66: 22702300301 | G66: 123.49 | H66: 86.60 | I66: 84.46 | J66: 16
A67: 65 | B67: 潘齐花 | C67: 2023030315 | D67: 福泉市小学学校 | E67: 小学语文教师 | F67: 22702300301 | G67: 121.65 | H67: 87.15 | I67: 84.13 | J67: 17
A68: 66 | B68: 张应树 | C68: 2023030319 | D68: 福泉市小学学校 | E68: 小学语文教师 | F68: 22702300301 | G68: 121.05 | H68: 87.49 | I68: 84.10 | J68: 18
A69: 67 | B69: 龙欢云 | C69: 2023030307 | D69: 福泉市小学学校 | E69: 小学语文教师 | F69: 22702300301 | G69: 123.49 | H69: 85.48 | I69: 83.90 | J69: 19
A70: 68 | B70: 杨通云 | C70: 2023030317 | D70: 福泉市小学学校 | E70: 小学语文教师 | F70: 22702300301 | G70: 121.12 | H70: 86.79 | I70: 83.77 | J70: 20
A71: 69 | B71: 李济帆 | C71: 2023030311 | D71: 福泉市小学学校 | E71: 小学语文教师 | F71: 22702300301 | G71: 122.80 | H71: 84.73 | I71: 83.30 | J71: 21
A72: 70 | B72: 黄近 | C72: 2023030401 | D72: 福泉市小学学校 | E72: 小学数学教师 | F72: 22702300302 | G72: 122.64 | H72: 92.16 | I72: 86.96 | J72: 1 | K72: 是
A73: 71 | B73: 欧群 | C73: 2023030403 | D73: 福泉市小学学校 | E73: 小学数学教师 | F73: 22702300302 | G73: 121.18 | H73: 89.60 | I73: 85.19 | J73: 2 | K73: 是
A74: 72 | B74: 杨澜 | C74: 2023030407 | D74: 福泉市小学学校 | E74: 小学数学教师 | F74: 22702300302 | G74: 115.83 | H74: 91.86 | I74: 84.54 | J74: 3 | K74: 是
A75: 73 | B75: 吴芳 | C75: 2023030408 | D75: 福泉市小学学校 | E75: 小学数学教师 | F75: 22702300302 | G75: 115.46 | H75: 90.44 | I75: 83.71 | J75: 4 | K75: 是
A76: 74 | B76: 饶启风 | C76: 2023030404 | D76: 福泉市小学学校 | E76: 小学数学教师 | F76: 22702300302 | G76: 119.13 | H76: 87.90 | I76: 83.66 | J76: 5 | K76: 是
A77: 75 | B77: 徐友 | C77: 2023030411 | D77: 福泉市小学学校 | E77: 小学数学教师 | F77: 22702300302 | G77: 114.24 | H77: 90.80 | I77: 83.48 | J77: 6 | K77: 是
A78: 76 | B78: 马涛 | C78: 2023030417 | D78: 福泉市小学学校 | E78: 小学数学教师 | F78: 22702300302 | G78: 112.64 | H78: 90.80 | I78: 82.95 | J78: 7
A79: 77 | B79: 冷继丽 | C79: 2023030410 | D79: 福泉市小学学校 | E79: 小学数学教师 | F79: 22702300302 | G79: 115.29 | H79: 88.70 | I79: 82.78 | J79: 8
A80: 78 | B80: 夏叶 | C80: 2023030416 | D80: 福泉市小学学校 | E80: 小学数学教师 | F80: 22702300302 | G80: 112.64 | H80: 89.86 | I80: 82.48 | J80: 9
A81: 79 | B81: 曾山 | C81: 2023030412 | D81: 福泉市小学学校 | E81: 小学数学教师 | F81: 22702300302 | G81: 114.11 | H81: 88.30 | I81: 82.19 | J81: 10
A82: 80 | B82: 田旭露 | C82: 2023030414 | D82: 福泉市小学学校 | E82: 小学数学教师 | F82: 22702300302 | G82: 113.19 | H82: 88.70 | I82: 82.08 | J82: 11
A83: 81 | B83: 罗秋燕 | C83: 2023030409 | D83: 福泉市小学学校 | E83: 小学数学教师 | F83: 22702300302 | G83: 115.41 | H83: 87.06 | I83: 82.00 | J83: 12
A84: 82 | B84: 董缘 | C84: 2023030406 | D84: 福泉市小学学校 | E84: 小学数学教师 | F84: 22702300302 | G84: 118.04 | H84: 85.00 | I84: 81.85 | J84: 13
A85: 83 | B85: 胡松 | C85: 2023030413 | D85: 福泉市小学学校 | E85: 小学数学教师 | F85: 22702300302 | G85: 113.60 | H85: 87.80 | I85: 81.77 | J85: 14
A86: 84 | B86: 童永美 | C86: 2023030415 | D86: 福泉市小学学校 | E86: 小学数学教师 | F86: 22702300302 | G86: 112.79 | H86: 88.08 | I86: 81.64 | J86: 15
A87: 85 | B87: 程香 | C87: 2023030418 | D87: 福泉市小学学校 | E87: 小学数学教师 | F87: 22702300302 | G87: 112.09 | H87: 82.52 | I87: 78.62 | J87: 16
A88: 86 | B88: 王念 | C88: 2023030402 | D88: 福泉市小学学校 | E88: 小学数学教师 | F88: 22702300302 | G88: 121.85 | H88: 缺考 | I88: —
A89: 87 | B89: 丰婷 | C89: 2023030405 | D89: 福泉市小学学校 | E89: 小学数学教师 | F89: 22702300302 | G89: 119.09 | H89: 缺考 | I89: —
A90: 88 | B90: 张瀚文 | C90: 2023030419 | D90: 福泉市小学学校 | E90: 小学音乐教师 | F90: 22702300304 | G90: 125.39 | H90: 93.50 | I90: =G90/1.5*0.5+H90*0.5 -> 88.55 | J90: 1 | K90: 是
A91: 89 | B91: 孙齐琳 | C91: 2023030422 | D91: 福泉市小学学校 | E91: 小学音乐教师 | F91: 22702300304 | G91: 116.26 | H91: 94.52 | I91: 86.01 | J91: 2 | K91: 是
A92: 90 | B92: 杨洒洒 | C92: 2023030421 | D92: 福泉市小学学校 | E92: 小学音乐教师 | F92: 22702300304 | G92: 117.51 | H92: 92.32 | I92: 85.33 | J92: 3 | K92: 是
A93: 91 | B93: 黄晓婷 | C93: 2023030424 | D93: 福泉市小学学校 | E93: 小学音乐教师 | F93: 22702300304 | G93: 115.28 | H93: 90.90 | I93: 83.88 | J93: 4
A94: 92 | B94: 吴国杏 | C94: 2023030425 | D94: 福泉市小学学校 | E94: 小学音乐教师 | F94: 22702300304 | G94: 115.14 | H94: 90.56 | I94: 83.66 | J94: 5
A95: 93 | B95: 杨琴 | C95: 2023030423 | D95: 福泉市小学学校 | E95: 小学音乐教师 | F95: 22702300304 | G95: 116.02 | H95: 87.44 | I95: 82.39 | J95: 6
A96: 94 | B96: 何艳兰 | C96: 2023030420 | D96: 福泉市小学学校 | E96: 小学音乐教师 | F96: 22702300304 | G96: 120.14 | H96: 缺考 | I96: —
A97: 95 | B97: 刘云霞 | C97: 2023030501 | D97: 福泉市小学学校 | E97: 小学英语教师 | F97: 22702300303 | G97: 130.31 | H97: 82.06 | I97: =G97/1.5*0.5+H97*0.5 -> 84.47 | J97: 1 | K97: 是
A98: 96 | B98: 田庆霞 | C98: 2023030506 | D98: 福泉市小学学校 | E98: 小学英语教师 | F98: 22702300303 | G98: 125.46 | H98: 84.68 | I98: 84.16 | J98: 2 | K98: 是
A99: 97 | B99: 刘敏 | C99: 2023030502 | D99: 福泉市小学学校 | E99: 小学英语教师 | F99: 22702300303 | G99: 128.76 | H99: 79.90 | I99: 82.87 | J99: 3 | K99: 是
A100: 98 | B100: 李璇 | C100: 2023030515 | D100: 福泉市小学学校 | E100: 小学英语教师 | F100: 22702300303 | G100: 120.90 | H100: 84.58 | I100: 82.59 | J100: 4 | K100: 是
A101: 99 | B101: 宋亚婷 | C101: 2023030508 | D101: 福泉市小学学校 | E101: 小学英语教师 | F101: 22702300303 | G101: 123.86 | H101: 81.38 | I101: 81.98 | J101: 5 | K101: 是
A102: 100 | B102: 李丽 | C102: 2023030504 | D102: 福泉市小学学校 | E102: 小学英语教师 | F102: 22702300303 | G102: 126.59 | H102: 79.38 | I102: 81.89 | J102: 6
A103: 101 | B103: 袁榕 | C103: 2023030510 | D103: 福泉市小学学校 | E103: 小学英语教师 | F103: 22702300303 | G103: 121.96 | H103: 82.09 | I103: 81.70 | J103: 7
A104: 102 | B104: 赵雪建 | C104: 2023030513 | D104: 福泉市小学学校 | E104: 小学英语教师 | F104: 22702300303 | G104: 121.68 | H104: 81.90 | I104: 81.51 | J104: 8
A105: 103 | B105: 何双琴 | C105: 2023030505 | D105: 福泉市小学学校 | E105: 小学英语教师 | F105: 22702300303 | G105: 126.26 | H105: 78.68 | I105: 81.43 | J105: 9
A106: 104 | B106: 谭文姣 | C106: 2023030507 | D106: 福泉市小学学校 | E106: 小学英语教师 | F106: 22702300303 | G106: 125.41 | H106: 76.86 | I106: 80.23 | J106: 10
A107: 105 | B107: 李莎 | C107: 2023030503 | D107: 福泉市小学学校 | E107: 小学英语教师 | F107: 22702300303 | G107: 127.30 | H107: 75.26 | I107: 80.06 | J107: 11
A108: 106 | B108: 刘远韦 | C108: 2023030509 | D108: 福泉市小学学校 | E108: 小学英语教师 | F108: 22702300303 | G108: 122.07 | H108: 78.21 | I108: 79.80 | J108: 12
A109: 107 | B109: 罗竹 | C109: 2023030512 | D109: 福泉市小学学校 | E109: 小学英语教师 | F109: 22702300303 | G109: 121.82 | H109: 76.70 | I109: 78.96 | J109: 13
A110: 108 | B110: 杨枢义 | C110: 2023030511 | D110: 福泉市小学学校 | E110: 小学英语教师 | F110: 22702300303 | G110: 121.86 | H110: 76.26 | I110: 78.75 | J110: 14
A111: 109 | B111: 罗洪芬 | C111: 2023030514 | D111: 福泉市小学学校 | E111: 小学英语教师 | F111: 22702300303 | G111: 121.30 | H111: 缺考 | I111: —
A112: 110 | B112: 梁瑾 | C112: 2023030518 | D112: 福泉市第二小学 | E112: 小学科学教师 | F112: 22702300401 | G112: 123.80 | H112: 89.46 | I112: =G112/1.5*0.5+H112*0.5 -> 86.00 | J112: 1 | K112: 是
A113: 111 | B113: 赵克丽 | C113: 2023030517 | D113: 福泉市第二小学 | E113: 小学科学教师 | F113: 22702300401 | G113: 124.98 | H113: 86.30 | I113: 84.81 | J113: 2
A114: 112 | B114: 石玉杰 | C114: 2023030516 | D114: 福泉市第二小学 | E114: 小学科学教师 | F114: 22702300401 | G114: 127.19 | H114: 74.32 | I114: 79.56 | J114: 3
A115: 113 | B115: 黄章文 | C115: 2023030601 | D115: 福泉市中等职业学校 | E115: 机械加工教师或实训教师 | F115: 22702300501 | G115: 121.45 | H115: 84.23 | I115: 82.60 | J115: 1 | K115: 是
A116: 114 | B116: 田玉才 | C116: 2023030602 | D116: 福泉市中等职业学校 | E116: 机械加工教师或实训教师 | F116: 22702300501 | G116: 116.93 | H116: 85.35 | I116: 81.65 | J116: 2 | K116: 是
A117: 115 | B117: 吴世礼 | C117: 2023030605 | D117: 福泉市中等职业学校 | E117: 机械加工教师或实训教师 | F117: 22702300501 | G117: 113.98 | H117: 83.98 | I117: 79.98 | J117: 3
A118: 116 | B118: 张学林 | C118: 2023030603 | D118: 福泉市中等职业学校 | E118: 机械加工教师或实训教师 | F118: 22702300501 | G118: 116.89 | H118: 78.93 | I118: 78.43 | J118: 4
A119: 117 | B119: 谭才龙 | C119: 2023030604 | D119: 福泉市中等职业学校 | E119: 机械加工教师或实训教师 | F119: 22702300501 | G119: 114.21 | H119: 79.07 | I119: 77.61 | J119: 5
A120: 118 | B120: 刘启壮 | C120: 2023030606 | D120: 福泉市中等职业学校 | E120: 机械加工教师或实训教师 | F120: 22702300501 | G120: 113.46 | H120: 79.23 | I120: 77.43 | J120: 6
A121: 119 | B121: 吕港 | C121: 2023030609 | D121: 福泉市中等职业学校 | E121: 机电技术教师或实训教师 | F121: 22702300502 | G121: 118.93 | H121: 86.25 | I121: 82.77 | J121: 1 | K121: 是
A122: 120 | B122: 韩毅 | C122: 2023030610 | D122: 福泉市中等职业学校 | E122: 机电技术教师或实训教师 | F122: 22702300502 | G122: 117.80 | H122: 82.94 | I122: 80.74 | J122: 2 | K122: 是
A123: 121 | B123: 陈领 | C123: 2023030607 | D123: 福泉市中等职业学校 | E123: 机电技术教师或实训教师 | F123: 22702300502 | G123: 119.44 | H123: 80.74 | I123: 80.18 | J123: 3
A124: 122 | B124: 吴磊 | C124: 2023030612 | D124: 福泉市中等职业学校 | E124: 机电技术教师或实训教师 | F124: 22702300502 | G124: 111.71 | H124: 81.19 | I124: 77.83 | J124: 4
A125: 123 | B125: 魏杰 | C125: 2023030611 | D125: 福泉市中等职业学校 | E125: 机电技术教师或实训教师 | F125: 22702300502 | G125: 116.06 | H125: 76.44 | I125: 76.91 | J125: 5
A126: 124 | B126: 徐磊 | C126: 2023030608 | D126: 福泉市中等职业学校 | E126: 机电技术教师或实训教师 | F126: 22702300502 | G126: 119.31 | H126: 缺考 | I126: —
A127: 125 | B127: 金吉吕 | C127: 2023030613 | D127: 福泉市中等职业学校 | E127: 电器自动化教师或实训教师 | F127: 22702300503 | G127: 120.03 | H127: 82.55 | I127: =G127/1.5*0.5+H127*0.5 -> 81.29 | J127: 1 | K127: 是
A128: 126 | B128: 张艳 | C128: 2023030614 | D128: 福泉市中等职业学校 | E128: 电器自动化教师或实训教师 | F128: 22702300503 | G128: 119.58 | H128: 81.05 | I128: 80.38 | J128: 2
A129: 127 | B129: 文超 | C129: 2023030615 | D129: 福泉市中等职业学校 | E129: 电器自动化教师或实训教师 | F129: 22702300503 | G129: 118.83 | H129: 缺考 | I129: —
A130: 128 | B130: 肖远英 | C130: 2023030618 | D130: 福泉市中等职业学校 | E130: 电子信息教师或实训教师 | F130: 22702300504 | G130: 124.48 | H130: 85.67 | I130: 84.33 | J130: 1 | K130: 是
A131: 129 | B131: 杨青 | C131: 2023030617 | D131: 福泉市中等职业学校 | E131: 电子信息教师或实训教师 | F131: 22702300504 | G131: 124.67 | H131: 82.60 | I131: 82.86 | J131: 2 | K131: 是
A132: 130 | B132: 熊天桥 | C132: 2023030616 | D132: 福泉市中等职业学校 | E132: 电子信息教师或实训教师 | F132: 22702300504 | G132: 127.71 | H132: 79.96 | I132: 82.55 | J132: 3
A133: 131 | B133: 严永福 | C133: 2023030621 | D133: 福泉市中等职业学校 | E133: 电子信息教师或实训教师 | F133: 22702300504 | G133: 120.48 | H133: 84.25 | I133: 82.29 | J133: 4
A134: 132 | B134: 罗娟艳 | C134: 2023030619 | D134: 福泉市中等职业学校 | E134: 电子信息教师或实训教师 | F134: 22702300504 | G134: 123.81 | H134: 80.78 | I134: 81.66 | J134: 5
A135: 133 | B135: 杨小燕 | C135: 2023030620 | D135: 福泉市中等职业学校 | E135: 电子信息教师或实训教师 | F135: 22702300504 | G135: 122.06 | H135: 79.44 | I135: 80.41 | J135: 6
A136: 134 | B136: 胡涛 | C136: 2023030701 | D136: 福泉市疾病预防控制中心 | E136: 检验员 | F136: 22702300802 | G136: 112.05 | H136: 84.61 | I136: 79.66 | J136: 1 | K136: 是
A137: 135 | B137: 陆邹红 | C137: 2023030703 | D137: 福泉市疾病预防控制中心 | E137: 检验员 | F137: 22702300802 | G137: 103.08 | H137: 87.90 | I137: 78.31 | J137: 2
A138: 136 | B138: 覃洁 | C138: 2023030702 | D138: 福泉市疾病预防控制中心 | E138: 检验员 | F138: 22702300802 | G138: 104.49 | H138: 缺考 | I138: —
A139: 137 | B139: 龙克香 | C139: 2023030704 | D139: 福泉市第一人民医院 | E139: 麻醉医师 | F139: 22702300901 | G139: 97.42 | H139: 88.09 | I139: =G139/1.5*0.5+H139*0.5 -> 76.52 | J139: 1 | K139: 是
A140: 138 | B140: 王泽富 | C140: 2023030706 | D140: 福泉市第一人民医院 | E140: 麻醉医师 | F140: 22702300901 | G140: 96.50 | H140: 86.12 | I140: 75.23 | J140: 2 | K140: 是
A141: 139 | B141: 徐立金 | C141: 2023030705 | D141: 福泉市第一人民医院 | E141: 麻醉医师 | F141: 22702300901 | G141: 96.54 | H141: 83.38 | I141: 73.87 | J141: 3
A142: 140 | B142: 李先知 | C142: 2023030707 | D142: 福泉市第一人民医院 | E142: 麻醉医师 | F142: 22702300901 | G142: 93.73 | H142: 83.83 | I142: 73.16 | J142: 4
A143: 141 | B143: 兰倩 | C143: 2023030710 | D143: 福泉市第一人民医院 | E143: 检验师 | F143: 22702300904 | G143: 113.44 | H143: 89.98 | I143: 82.80 | J143: 1 | K143: 是
A144: 142 | B144: 邱雪丽 | C144: 2023030708 | D144: 福泉市第一人民医院 | E144: 检验师 | F144: 22702300904 | G144: 114.67 | H144: 86.19 | I144: 81.32 | J144: 2
A145: 143 | B145: 罗必敏 | C145: 2023030709 | D145: 福泉市第一人民医院 | E145: 检验师 | F145: 22702300904 | G145: 114.06 | H145: 86.38 | I145: 81.21 | J145: 3
A146: 144 | B146: 解星星 | C146: 2023030712 | D146: 福泉市金山社区卫生服务中心 | E146: 临床检验师 | F146: 22702301302 | G146: 105.08 | H146: 87.76 | I146: 78.91 | J146: 1 | K146: 是
A147: 145 | B147: 罗林琴 | C147: 2023030713 | D147: 福泉市金山社区卫生服务中心 | E147: 临床检验师 | F147: 22702301302 | G147: 99.93 | H147: 84.63 | I147: 75.62 | J147: 2
A148: 146 | B148: 马海赐 | C148: 2023030711 | D148: 福泉市金山社区卫生服务中心 | E148: 临床检验师 | F148: 22702301302 | G148: 120.85 | H148: 缺考 | I148: —
A149: 147 | B149: 颜龙 | C149: 2023030714 | D149: 福泉市第三人民医院 | E149: 眼视光医师/口腔医师 | F149: 22702301203 | G149: 108.72 | H149: 85.21 | I149: =G149/1.5*0.5+H149*0.5 -> 78.85 | J149: 1 | K149: 是
A150: 148 | B150: 封晓鸣 | C150: 2023030715 | D150: 福泉市第三人民医院 | E150: 眼视光医师/口腔医师 | F150: 22702301203 | G150: 101.49 | H150: 87.28 | I150: 77.47 | J150: 2
A151: 149 | B151: 赵兴丹 | C151: 2023030716 | D151: 福泉市金山社区卫生服务中心 | E151: 口腔医师 | F151: 22702301301 | G151: 99.23 | H151: 87.44 | I151: 76.80 | J151: 1 | K151: 是
A152: 150 | B152: 胡蓝 | C152: 2023030717 | D152: 福泉市金山社区卫生服务中心 | E152: 口腔医师 | F152: 22702301301 | G152: 98.14 | H152: 87.81 | I152: 76.62 | J152: 2
A153: 151 | B153: 但鼎芝 | C153: 2023030804 | D153: 福泉市疾病预防控制中心 | E153: 医师 | F153: 22702300801 | G153: 108.67 | H153: 89.94 | I153: 81.19 | J153: 1 | K153: 是
A154: 152 | B154: 谭佳 | C154: 2023030803 | D154: 福泉市疾病预防控制中心 | E154: 医师 | F154: 22702300801 | G154: 111.66 | H154: 87.20 | I154: 80.82 | J154: 2 | K154: 是
A155: 153 | B155: 唐素 | C155: 2023030802 | D155: 福泉市疾病预防控制中心 | E155: 医师 | F155: 22702300801 | G155: 113.08 | H155: 78.80 | I155: 77.09 | J155: 3
A156: 154 | B156: 杨采云 | C156: 2023030801 | D156: 福泉市疾病预防控制中心 | E156: 医师 | F156: 22702300801 | G156: 113.46 | H156: 78.40 | I156: 77.02 | J156: 4
A157: 155 | B157: 王艳桃 | C157: 2023030806 | D157: 福泉市疾病预防控制中心 | E157: 医师 | F157: 22702300801 | G157: 107.76 | H157: 81.23 | I157: 76.54 | J157: 5
A158: 156 | B158: 谢婷婷 | C158: 2023030805 | D158: 福泉市疾病预防控制中心 | E158: 医师 | F158: 22702300801 | G158: 107.88 | H158: 80.67 | I158: 76.30 | J158: 6
A159: 157 | B159: 罗丽琼 | C159: 2023030807 | D159: 福泉市第一人民医院 | E159: 临床医师 | F159: 22702300903 | G159: 118.06 | H159: 81.54 | I159: 80.12 | J159: 1 | K159: 是
A160: 158 | B160: 陈元友 | C160: 2023030808 | D160: 福泉市第一人民医院 | E160: 临床医师 | F160: 22702300903 | G160: 113.78 | H160: 75.70 | I160: 75.78 | J160: 2
A161: 159 | B161: 杨时吉 | C161: 2023030809 | D161: 福泉市第一人民医院 | E161: 临床医师 | F161: 22702300903 | G161: 111.43 | H161: 70.80 | I161: 72.54 | J161: 3
A162: 160 | B162: 唐健 | C162: 2023030810 | D162: 福泉市中医医院 | E162: 临床医师 | F162: 22702301001 | G162: 113.53 | H162: 85.26 | I162: 80.47 | J162: 1 | K162: 是
A163: 161 | B163: 张文杰 | C163: 2023030811 | D163: 福泉市中医医院 | E163: 临床医师 | F163: 22702301001 | G163: 91.21 | H163: 缺考 | I163: —
A164: 162 | B164: 吴邦杰 | C164: 2023030812 | D164: 福泉市第三人民医院 | E164: 临床医师 | F164: 22702301201 | G164: 114.90 | H164: 89.20 | I164: =G164/1.5*0.5+H164*0.5 -> 82.90 | J164: 1 | K164: 是
A165: 163 | B165: 毛俊杰 | C165: 2023030813 | D165: 福泉市第三人民医院 | E165: 临床医师 | F165: 22702301201 | G165: 111.23 | H165: 77.70 | I165: 75.93 | J165: 2 | K165: 是
A166: 164 | B166: 杨丹 | C166: 2023030814 | D166: 福泉市第三人民医院 | E166: 临床医师 | F166: 22702301201 | G166: 100.41 | H166: 73.60 | I166: 70.27 | J166: 3
A167: 165 | B167: 任晨晨 | C167: 2023030815 | D167: 福泉市马场坪社区卫生服务中心 | E167: 临床医师 | F167: 22702301501 | G167: 107.24 | H167: 75.97 | I167: 73.73 | J167: 1 | K167: 是
A168: 166 | B168: 吴双燕 | C168: 2023030816 | D168: 福泉市马场坪社区卫生服务中心 | E168: 临床医师 | F168: 22702301501 | G168: 96.38 | H168: 76.60 | I168: 70.43 | J168: 2 | K168: 是
A169: 167 | B169: 刘念 | C169: 2023030817 | D169: 福泉市陆坪中心卫生院 | E169: 医师 | F169: 22702301601 | G169: 96.67 | H169: 缺考 | I169: —
A170: 168 | B170: 赵丹 | C170: 2023030818 | D170: 福泉市道坪中心卫生院 | E170: 医师 | F170: 22702302001 | G170: 105.21 | H170: 70.66 | I170: =G170/1.5*0.5+H170*0.5 -> 70.40 | J170: 1 | K170: 是
A171: 169 | B171: 王光阳 | C171: 2023030819 | D171: 福泉市黄丝卫生院 | E171: 临床医师 | F171: 22702302101 | G171: 106.40 | H171: 78.40 | I171: 74.67 | J171: 1 | K171: 是
A172: 170 | B172: 陈蹬莲 | C172: 2023030821 | D172: 福泉市黄丝卫生院 | E172: 临床医师 | F172: 22702302101 | G172: 97.58 | H172: 82.50 | I172: 73.78 | J172: 2
A173: 171 | B173: 王云玮 | C173: 2023030820 | D173: 福泉市黄丝卫生院 | E173: 临床医师 | F173: 22702302101 | G173: 99.81 | H173: 75.80 | I173: 71.17 | J173: 3
A174: 172 | B174: 杨艳 | C174: 2023030903 | D174: 福泉市应急服务保障中心 | E174: 工作员 | F174: 22702302201 | G174: 114.26 | H174: 90.30 | I174: 83.24 | J174: 1 | K174: 是
A175: 173 | B175: 魏兴元 | C175: 2023030901 | D175: 福泉市应急服务保障中心 | E175: 工作员 | F175: 22702302201 | G175: 119.74 | H175: 85.99 | I175: 82.91 | J175: 2 | K175: 是
A176: 174 | B176: 杜家旭 | C176: 2023030902 | D176: 福泉市应急服务保障中心 | E176: 工作员 | F176: 22702302201 | G176: 115.79 | H176: 88.20 | I176: 82.70 | J176: 3 | K176: 是
A177: 175 | B177: 苏燕 | C177: 2023030906 | D177: 福泉市应急服务保障中心 | E177: 工作员 | F177: 22702302201 | G177: 108.83 | H177: 90.87 | I177: 81.71 | J177: 4
A178: 176 | B178: 曹新治 | C178: 2023030905 | D178: 福泉市应急服务保障中心 | E178: 工作员 | F178: 22702302201 | G178: 111.23 | H178: 88.43 | I178: 81.29 | J178: 5
A179: 177 | B179: 叶乾林 | C179: 2023030904 | D179: 福泉市应急服务保障中心 | E179: 工作员 | F179: 22702302201 | G179: 112.46 | H179: 86.46 | I179: 80.72 | J179: 6
A180: 178 | B180: 谢锋 | C180: 2023030907 | D180: 福泉市应急服务保障中心 | E180: 工作员 | F180: 22702302201 | G180: 107.39 | H180: 88.13 | I180: 79.86 | J180: 7
A181: 179 | B181: 陈海龙 | C181: 2023030908 | D181: 福泉市应急服务保障中心 | E181: 工作员 | F181: 22702302201 | G181: 106.54 | H181: 86.31 | I181: 78.67 | J181: 8
A182: 180 | B182: 董柏成 | C182: 2023030909 | D182: 福泉市应急服务保障中心 | E182: 工作员 | F182: 22702302201 | G182: 105.79 | H182: 80.99 | I182: 75.76 | J182: 9
A183: 181 | B183: 李巽 | C183: 2023030910 | D183: 福泉市牛场镇科技宣教文化信息服务中心 | E183: 工作员 | F183: 22702302301 | G183: 109.94 | H183: 93.10 | I183: 83.20 | J183: 1 | K183: 是
A184: 182 | B184: 邱云龙 | C184: 2023030911 | D184: 福泉市牛场镇科技宣教文化信息服务中心 | E184: 工作员 | F184: 22702302301 | G184: 104.11 | H184: 89.67 | I184: 79.54 | J184: 2
A185: 183 | B185: 黄健航 | C185: 2023030912 | D185: 福泉市牛场镇科技宣教文化信息服务中心 | E185: 工作员 | F185: 22702302301 | G185: 102.42 | H185: 86.19 | I185: 77.24 | J185: 3
A186: 184 | B186: 宋志会 | C186: 2023030913 | D186: 福泉市牛场镇农业综合服务中心 | E186: 工作员 | F186: 22702302401 | G186: 120.01 | H186: 90.53 | I186: 85.27 | J186: 1 | K186: 是
A187: 185 | B187: 王鑫 | C187: 2023030914 | D187: 福泉市牛场镇农业综合服务中心 | E187: 工作员 | F187: 22702302401 | G187: 119.26 | H187: 84.81 | I187: 82.16 | J187: 2
A188: 186 | B188: 王承志 | C188: 2023030915 | D188: 福泉市龙昌镇农业综合服务中心 | E188: 工作员 | F188: 22702302501 | G188: 120.66 | H188: 89.37 | I188: 84.91 | J188: 1 | K188: 是
A189: 187 | B189: 李宪 | C189: 2023030917 | D189: 福泉市龙昌镇农业综合服务中心 | E189: 工作员 | F189: 22702302501 | G189: 117.79 | H189: 89.38 | I189: 83.95 | J189: 2
A190: 188 | B190: 骆程 | C190: 2023030916 | D190: 福泉市龙昌镇农业综合服务中心 | E190: 工作员 | F190: 22702302501 | G190: 118.37 | H190: 缺考 | I190: —
A191: 189 | B191: 张娇 | C191: 2023030918 | D191: 福泉市人工影响天气工作站 | E191: 福泉市人工影响天气工作站工作人员 | F191: 22702300601 | G191: 125.73 | H191: 92.55 | I191: =G191/1.5*0.5+H191*0.5 -> 88.19 | J191: 1 | K191: 是
A192: 190 | B192: 白雪 | C192: 2023030919 | D192: 福泉市人工影响天气工作站 | E192: 福泉市人工影响天气工作站工作人员 | F192: 22702300601 | G192: 125.18 | H192: 89.20 | I192: 86.33 | J192: 2
A193: 191 | B193: 马海涌 | C193: 2023030920 | D193: 福泉市人工影响天气工作站 | E193: 福泉市人工影响天气工作站工作人员 | F193: 22702300601 | G193: 125.14 | H193: 88.95 | I193: 86.19 | J193: 3
A194: 192 | B194: 龙丹 | C194: 2023030921 | D194: 福泉市果树及蔬菜产业服务中心 | E194: 福泉市果树及蔬菜产业服务中心工作人员 | F194: 22702300702 | G194: 121.03 | H194: 89.02 | I194: 84.86 | J194: 1 | K194: 是
A195: 193 | B195: 冉华东 | C195: 2023030922 | D195: 福泉市果树及蔬菜产业服务中心 | E195: 福泉市果树及蔬菜产业服务中心工作人员 | F195: 22702300702 | G195: 120.01 | H195: 88.43 | I195: 84.22 | J195: 2
A196: 194 | B196: 杨雪敏 | C196: 2023030923 | D196: 福泉市果树及蔬菜产业服务中心 | E196: 福泉市果树及蔬菜产业服务中心工作人员 | F196: 22702300702 | G196: 117.20 | H196: 缺考 | I196: —
